bitfinex/quotes_SOLUSD_20250410
["timestamp","ask_amount","ask_price","bid_price","bid_amount"]
[1744273892133,0.03,114.77,114.74,0.28432314]
[1744273892134,0.03,114.77,114.75,42.58675893]
[1744273892547,0.03,114.77,114.75,26.0]
[1744273892746,0.03,114.77,114.74,16.58675893]
[1744273892916,0.03,114.77,114.73,16.58675893]
[1744273893954,16.61675893,114.77,114.72,16.58675893]
[1744273894167,25.30055893,114.76,114.72,16.58675893]
[1744273894443,25.30055893,114.76,114.71,16.58675893]
[1744273895953,25.30055893,114.76,114.69,23.24012982]
[1744273896154,25.30165893,114.75,114.7,16.58675893]
[1744273898664,16.58675893,114.73,114.68,16.58675893]
[1744273898961,16.58675893,114.71,114.66,16.58675893]
[1744273899142,0.28432314,114.74,114.66,16.58675893]
[1744273899346,16.58675893,114.71,114.66,16.58675893]
[1744273899560,16.58675893,114.71,114.67,16.58675893]
[1744273901457,25.30475893,114.71,114.66,42.58675893]
[1744273901663,25.30475893,114.71,114.66,26.0]
[1744273901955,16.58675893,114.69,114.64,16.58675893]
[1744273902469,16.58675893,114.66,114.61,16.58675893]
[1744273902638,16.58675893,114.66,114.61,42.58675893]
[1744273903546,16.58675893,114.67,114.62,42.58675893]
[1744273903855,16.58675893,114.66,114.61,16.58675893]
[1744273904647,8.2518,114.67,114.63,16.58675893]
[1744273904848,8.2518,114.67,114.64,16.58675893]
[1744273905465,106.33855893,114.7,114.65,16.58675893]
[1744273905668,8.2518,114.7,114.66,16.58675893]
[1744273906566,24.83855893,114.7,114.65,42.58675893]
[1744273908166,16.58675893,114.69,114.65,26.0]
[1744273908368,8.2518,114.7,114.65,42.58675893]
[1744273908369,24.83855893,114.7,114.65,42.58675893]
[1744273909665,24.83855893,114.7,114.65,26.0]
[1744273909666,16.58675893,114.69,114.65,26.0]
[1744273910171,16.58675893,114.69,114.63,0.28432314]
[1744273910355,16.58675893,114.67,114.63,26.0]
[1744273910768,16.9702,114.7,114.61,16.58675893]
[1744273910769,16.58675893,114.66,114.61,16.58675893]
[1744273910948,24.40805893,114.66,114.6,0.063]
[1744273911168,16.58675893,114.64,114.6,0.063]
[1744273911349,7.8213,114.64,114.6,0.063]
[1744273911571,16.58675893,114.61,114.6,0.063]
[1744273911759,43.05770779,114.61,114.6,0.063]
[1744273912479,51.78290779,114.61,114.6,0.063]
[1744273913292,53.08230992,114.61,114.6,0.063]
[1744273914564,61.80750992,114.61,114.6,0.063]
[1744273914763,0.28432314,114.6,114.59,0.063]
[1744273914966,53.50704526,114.6,114.59,0.063]
[1744273915851,80.88269412,114.6,114.59,0.063]
[1744273916058,26.8956842,114.59,114.58,0.063]
[1744273916367,33.5269842,114.59,114.58,0.063]
[1744273916566,52.17663306,114.59,114.58,0.063]
[1744273916867,26.8956842,114.58,114.57,0.063]
[1744273917067,108.3956842,114.58,114.57,0.063]
[1744273917587,126.76100992,114.58,114.57,0.063]
[1744273918061,108.11136106,114.58,114.57,0.063]
[1744273919631,81.5,114.58,114.57,0.063]
[1744273919886,108.11136106,114.58,114.57,0.063]
[1744273920255,81.5,114.58,114.57,0.063]
[1744273920461,108.11136106,114.58,114.57,0.063]
[1744273921073,135.48850992,114.58,114.57,0.063]
[1744273921269,107.5,114.56,114.53,0.063]
[1744273921583,108.3956842,114.55,114.53,0.063]
[1744273921984,18.64964886,114.54,114.53,0.063]
[1744273922165,78.42267098,114.54,114.53,0.063]
[1744273922370,0.28432314,114.53,114.52,0.063]
[1744273922572,108.3956842,114.53,114.52,0.063]
[1744273922958,135.77663306,114.53,114.52,0.063]
[1744273923193,135.77663306,114.53,114.51,0.063]
[1744273923382,26.8956842,114.52,114.51,0.063]
[1744273923763,26.61136106,114.52,114.51,0.063]
[1744273924278,81.5,114.53,114.51,0.063]
[1744273924486,108.11136106,114.53,114.51,0.063]
[1744273924686,26.61136106,114.52,114.51,0.063]
[1744273924988,53.99300992,114.52,114.51,0.063]
[1744273925196,54.27733306,114.52,114.51,0.063]
[1744273925972,80.42733306,114.52,114.51,0.063]
[1744273926171,54.27733306,114.52,114.51,0.063]
[1744273926591,45.54533306,114.52,114.51,0.063]
[1744273926770,45.26100992,114.52,114.51,0.063]
[1744273927095,108.11136106,114.53,114.51,0.063]
[1744273927303,26.61136106,114.52,114.51,0.063]
[1744273927598,45.26100992,114.52,114.51,0.063]
[1744273928309,26.61136106,114.52,114.51,0.063]
[1744273928491,81.5,114.53,114.51,0.063]
[1744273928676,26.61136106,114.52,114.51,0.063]
[1744273929392,53.99300992,114.52,114.51,0.063]
[1744273929586,54.27733306,114.52,114.51,0.063]
[1744273932386,27.058172,114.51,114.48,0.063]
[1744273932707,26.61136106,114.49,114.48,0.063]
[1744273933079,26.77384886,114.51,114.48,0.063]
[1744273933279,26.61136106,114.5,114.48,0.063]
[1744273934598,33.91944886,114.51,114.48,0.063]
[1744273934599,33.14826106,114.51,114.48,0.063]
[1744273934800,6.5369,114.51,114.48,0.063]
[1744273935189,33.14826106,114.51,114.48,0.063]
[1744273936080,26.61136106,114.5,114.48,0.063]
[1744273936989,45.26100992,114.49,114.48,0.063]
[1744273937499,54.27963306,114.49,114.48,0.063]
[1744273938011,100.433972,114.48,114.47,0.063]
[1744273938178,126.370972,114.46,114.45,0.063]
[1744273938382,100.370972,114.45,114.39,0.063]
[1744273938645,26.61136106,114.4,114.39,0.063]
[1744273939996,18.64964886,114.42,114.39,0.063]
[1744273940184,45.26100992,114.4,114.39,0.063]
[1744273941507,51.92503306,114.4,114.39,0.063]
[1744273941674,60.66623306,114.4,114.39,0.063]
[1744273942576,51.92503306,114.4,114.39,0.063]
[1744273942801,25.02934886,114.4,114.39,0.063]
[1744273942998,51.64070992,114.4,114.39,0.063]
[1744273943195,18.64964886,114.42,114.39,0.063]
[1744273943396,26.61136106,114.4,114.39,0.063]
[1744273943786,26.61136106,114.41,114.39,0.063]
[1744273943988,18.64964886,114.42,114.39,0.063]
[1744273944304,26.61136106,114.41,114.39,0.063]
[1744273945309,26.61136106,114.4,114.39,0.063]
[1744273946088,18.64964886,114.45,114.39,0.063]
[1744273946282,18.64964886,114.45,114.4,26.61136106]
[1744273946283,45.26100992,114.45,114.4,26.61136106]
[1744273946712,26.61136106,114.45,114.4,26.61136106]
[1744273947001,26.61136106,114.45,114.39,0.063]
[1744273947208,26.61136106,114.45,114.4,26.61136106]
[1744273947696,100.14964886,114.47,114.42,26.61136106]
[1744273947697,108.11136106,114.47,114.42,26.61136106]
[1744273948099,26.61136106,114.46,114.41,26.61136106]
[1744273948407,26.61136106,114.45,114.41,26.61136106]
[1744273948712,26.61136106,114.46,114.41,26.61136106]
[1744273948890,81.5,114.47,114.41,26.61136106]
[1744273949097,26.61136106,114.46,114.41,26.61136106]
[1744273949494,81.5,114.47,114.42,26.61136106]
[1744273949689,81.5,114.47,114.43,26.61136106]
[1744273951109,81.5,114.47,114.44,26.61136106]
[1744273951308,81.5,114.47,114.43,26.61136106]
[1744273951815,81.5,114.47,114.42,27.5172]
[1744273951996,108.11136106,114.47,114.42,54.12856106]
[1744273952610,81.5,114.47,114.43,26.61136106]
[1744273953318,108.11136106,114.47,114.42,54.12856106]
[1744273954013,108.11136106,114.47,114.42,28.12856106]
[1744273954509,26.61136106,114.45,114.4,26.61136106]
[1744273954710,26.61136106,114.44,114.39,0.063]
[1744273954891,26.61136106,114.43,114.39,0.063]
[1744273955093,26.61136106,114.44,114.39,26.67436106]
[1744273955520,26.61136106,114.43,114.39,0.063]
[1744273955826,26.61136106,114.44,114.39,26.67436106]
[1744273956518,26.61136106,114.45,114.4,26.61136106]
[1744273956897,108.11136106,114.46,114.41,26.61136106]
[1744273957096,81.5,114.46,114.42,26.61136106]
[1744273957617,108.11136106,114.46,114.41,26.61136106]
[1744273958314,108.11136106,114.46,114.39,0.063]
[1744273958622,108.11136106,114.46,114.41,26.61136106]
[1744273960223,26.61136106,114.45,114.4,52.61136106]
[1744273961025,108.11136106,114.46,114.41,26.61136106]
[1744273961722,108.11136106,114.46,114.4,26.0]
[1744273961910,108.11136106,114.46,114.41,26.61136106]
[1744273962113,108.11136106,114.46,114.4,26.0]
[1744273962324,108.11136106,114.46,114.41,26.61136106]
[1744273962522,116.84796106,114.46,114.41,26.61136106]
[1744273963132,26.61136106,114.45,114.39,0.063]
[1744273963317,26.61136106,114.44,114.39,26.67436106]
[1744273964837,26.61136106,114.44,114.39,0.063]
[1744273965037,26.61136106,114.43,114.39,0.063]
[1744273965342,26.61136106,114.42,114.39,0.063]
[1744273966034,26.61136106,114.41,114.39,0.063]
[1744273966237,26.61136106,114.4,114.39,0.063]
[1744273966824,91.8865,114.42,114.39,0.063]
[1744273967020,26.61136106,114.4,114.39,0.063]
[1744273968230,109.75756106,114.42,114.39,0.063]
[1744273968435,81.5,114.42,114.39,26.67436106]
[1744273969226,81.5,114.42,114.39,0.063]
[1744273969480,81.5,114.42,114.39,26.67436106]
[1744273970347,26.61136106,114.44,114.39,26.67436106]
[1744273970644,26.61136106,114.44,114.39,0.063]
[1744273970838,26.61136106,114.44,114.39,26.67436106]
[1744273971950,26.61136106,114.43,114.39,0.063]
[1744273972241,26.61136106,114.44,114.39,26.67436106]
[1744273972648,26.61136106,114.43,114.39,0.063]
[1744273973055,26.61136106,114.42,114.39,0.063]
[1744273974961,35.35106106,114.42,114.39,0.063]
[1744273975331,26.61136106,114.4,114.39,0.063]
[1744273976043,35.35256106,114.4,114.39,0.063]
[1744273977345,26.61136106,114.4,114.39,0.063]
[1744273977850,108.11136106,114.41,114.39,0.063]
[1744273978057,26.61136106,114.4,114.39,0.063]
[1744273978950,19.80019164,114.4,114.39,0.063]
[1744273979637,28.54139164,114.4,114.39,0.063]
[1744273979836,38.16551736,114.4,114.39,0.063]
[1744273980335,46.90671736,114.4,114.39,0.063]
[1744273980547,48.7095405,114.4,114.39,0.063]
[1744273980877,0.28432314,114.37,114.36,0.063]
[1744273981064,74.17519412,114.37,114.34,0.063]
[1744273981241,71.54533306,114.35,114.34,0.063]
[1744273981439,26.61136106,114.35,114.34,0.063]
[1744273981634,1.5185,114.37,114.34,0.063]
[1744273981838,28.12986106,114.37,114.34,0.063]
[1744273982041,14.7826,114.38,114.34,0.063]
[1744273982451,26.61136106,114.35,114.34,0.063]
[1744273982640,26.8956842,114.35,114.34,0.063]
[1744273982845,26.61136106,114.35,114.34,0.063]
[1744273983362,18.64964886,114.39,114.34,0.063]
[1744273983657,28.97474886,114.4,114.35,26.61136106]
[1744273983865,26.61136106,114.39,114.34,26.67436106]
[1744273984363,28.97474886,114.4,114.34,26.67436106]
[1744273984563,81.5,114.39,114.34,26.67436106]
[1744273984789,0.14216157,114.42,114.36,26.61136106]
[1744273984790,100.14964886,114.42,114.36,26.61136106]
[1744273984954,26.61136106,114.41,114.36,26.61136106]
[1744273985577,81.5,114.42,114.37,26.61136106]
[1744273985788,81.5,114.42,114.35,26.0]
[1744273986075,81.5,114.42,114.38,26.61136106]
[1744273986258,26.61136106,114.39,114.34,0.063]
[1744273986477,26.61136106,114.39,114.34,26.67436106]
[1744273987154,8.7419,114.4,114.34,26.67436106]
[1744273987356,26.61136106,114.39,114.34,26.67436106]
[1744273988275,108.11136106,114.41,114.36,26.61136106]
[1744273988480,108.11136106,114.41,114.37,26.61136106]
[1744273988681,81.5,114.41,114.37,26.61136106]
[1744273988867,116.85196106,114.41,114.34,0.063]
[1744273989065,26.61136106,114.39,114.34,26.67436106]
[1744273989378,45.26100992,114.4,114.35,26.61136106]
[1744273989683,90.2406,114.41,114.36,26.61136106]
[1744273989684,108.11136106,114.41,114.36,26.61136106]
[1744273990366,26.61136106,114.39,114.34,26.67436106]
[1744273990771,26.61136106,114.4,114.35,26.61136106]
[1744273991158,26.61136106,114.38,114.34,0.063]
[1744273991476,26.61136106,114.37,114.34,0.063]
[1744273991863,108.14484886,114.39,114.34,0.063]
[1744273992189,26.61136106,114.38,114.34,0.063]
[1744273992576,35.35406106,114.38,114.34,0.063]
[1744273992889,26.61136106,114.37,114.34,0.063]
[1744273993179,26.61136106,114.35,114.34,0.063]
[1744273993385,45.26100992,114.35,114.34,0.063]
[1744273994590,54.00600992,114.35,114.34,0.063]
[1744273995083,26.61136106,114.35,114.34,0.063]
[1744273995293,90.2446,114.36,114.34,0.063]
[1744273995791,26.61136106,114.35,114.34,0.063]
[1744273996172,54.00600992,114.35,114.34,0.063]
[1744273996582,60.71013306,114.35,114.34,0.063]
[1744273998890,26.0,114.32,114.31,0.063]
[1744273999183,26.0,114.32,114.28,0.063]
[1744273999184,26.28432314,114.29,114.28,0.063]
[1744273999362,18.933972,114.33,114.28,0.063]
[1744273999564,18.933972,114.31,114.28,0.063]
[1744273999767,0.28432314,114.34,114.28,0.063]
[1744273999967,45.26100992,114.34,114.29,26.61136106]
[1744274000249,26.61136106,114.32,114.28,0.063]
[1744274000385,27.39554886,114.34,114.3,26.61136106]
[1744274000575,54.00690992,114.34,114.28,0.063]
[1744274000770,26.61136106,114.33,114.28,26.67436106]
[1744274000971,26.61136106,114.34,114.28,26.67436106]
[1744274001302,26.61136106,114.33,114.28,0.063]
[1744274001469,26.61136106,114.3,114.28,0.063]
[1744274001670,26.61136106,114.29,114.28,0.063]
[1744274002090,18.64964886,114.3,114.28,0.063]
[1744274002284,45.26100992,114.3,114.28,0.063]
[1744274002478,26.61136106,114.29,114.28,0.063]
[1744274002692,45.26100992,114.29,114.28,0.063]
[1744274002998,18.64964886,114.29,114.28,0.063]
[1744274003202,45.26100992,114.29,114.28,0.063]
[1744274003600,45.54533306,114.29,114.28,0.063]
[1744274004074,54.29493306,114.29,114.28,0.063]
[1744274005177,54.01060992,114.29,114.28,0.063]
[1744274005504,45.26100992,114.29,114.28,0.063]
[1744274005998,54.01060992,114.29,114.28,0.063]
[1744274006198,54.29493306,114.29,114.28,0.063]
[1744274007606,54.29493306,114.29,114.28,0.0001]
[1744274007786,26.28432314,114.25,114.24,0.063]
[1744274007985,71.54533306,114.25,114.24,0.063]
[1744274009803,80.29803306,114.25,114.24,0.063]
[1744274010181,86.31833306,114.25,114.24,0.063]
[1744274010587,18.933972,114.2,114.1,18.64964886]
[1744274010783,26.8956842,114.2,114.16,0.063]
[1744274011004,18.64964886,114.19,114.16,0.063]
[1744274011196,18.64964886,114.17,114.16,0.063]
[1744274011502,26.61136106,114.18,114.16,0.063]
[1744274011693,26.61136106,114.19,114.16,0.063]
[1744274011895,18.64964886,114.19,114.16,0.063]
[1744274012278,45.26100992,114.19,114.16,0.063]
[1744274012606,18.64964886,114.17,114.16,0.063]
[1744274013040,34.756,114.21,114.16,0.063]
[1744274013186,18.64964886,114.2,114.16,0.063]
[1744274013596,45.26100992,114.2,114.16,0.063]
[1744274013808,26.61136106,114.2,114.16,0.063]
[1744274014112,0.14216157,114.19,114.16,0.063]
[1744274014286,18.64964886,114.19,114.16,0.063]
[1744274014785,45.26100992,114.19,114.16,0.063]
[1744274015096,18.64964886,114.17,114.16,0.063]
[1744274015697,18.933972,114.17,114.16,0.063]
[1744274016591,18.64964886,114.18,114.16,0.063]
[1744274016979,54.30223306,114.2,114.16,0.063]
[1744274017183,81.5,114.19,114.16,26.67436106]
[1744274017903,81.5,114.19,114.18,26.61136106]
[1744274018098,81.5,114.24,114.18,26.61136106]
[1744274018293,81.5,114.24,114.17,26.0]
[1744274018495,45.26100992,114.21,114.16,26.67436106]
[1744274018709,100.14964886,114.21,114.16,26.67436106]
[1744274019015,126.76100992,114.21,114.16,26.67436106]
[1744274019908,100.14964886,114.21,114.17,26.61136106]
[1744274020207,100.14964886,114.21,114.16,0.063]
[1744274020208,100.14964886,114.21,114.18,26.61136106]
[1744274020401,81.5,114.21,114.2,26.61136106]
[1744274021492,81.5,114.27,114.2,26.61136106]
[1744274021790,81.5,114.27,114.24,26.61136106]
[1744274022009,81.5,114.27,114.23,26.61136106]
[1744274022807,18.64964886,114.26,114.19,6.0885]
[1744274023116,81.5,114.25,114.21,26.61136106]
[1744274023487,81.5,114.25,114.22,26.61136106]
[1744274024007,81.5,114.25,114.21,26.61136106]
[1744274024916,90.2528,114.25,114.21,26.61136106]
[1744274025114,81.5,114.25,114.21,26.61136106]
[1744274025290,90.2528,114.25,114.21,26.61136106]
[1744274025701,81.5,114.25,114.21,26.61136106]
[1744274026515,90.2529,114.25,114.21,26.61136106]
[1744274026719,81.5,114.27,114.24,26.61136106]
[1744274027011,0.03,114.28,114.26,26.61136106]
[1744274027587,0.03,114.28,114.25,26.61136106]
[1744274027812,0.03,114.28,114.24,26.61136106]
[1744274028018,0.03,114.28,114.25,26.61136106]
[1744274028512,0.03,114.28,114.26,26.61136106]
[1744274028715,0.03,114.28,114.25,26.61136106]
[1744274028909,18.67964886,114.28,114.22,26.0]
[1744274029306,18.67964886,114.28,114.24,26.61136106]
[1744274030914,0.03,114.28,114.25,26.61136106]
[1744274031588,0.03,114.28,114.26,26.61136106]
[1744274032012,0.03,114.28,114.21,1.5273]
[1744274032013,18.67964886,114.28,114.23,26.0]
[1744274032194,18.67964886,114.28,114.24,26.61136106]
[1744274032808,0.03,114.28,114.25,26.61136106]
[1744274033014,0.03,114.28,114.26,26.61136106]
[1744274033418,0.03,114.28,114.22,0.28432314]
[1744274033598,0.03,114.28,114.26,26.61136106]
[1744274033822,0.03,114.28,114.27,26.61136106]
[1744274034205,0.03,114.28,114.22,18.933972]
[1744274034403,0.03,114.28,114.27,26.61136106]
[1744274035112,0.03,114.28,114.24,26.61136106]
[1744274035310,0.03,114.28,114.27,26.61136106]
[1744274035711,0.03,114.3,114.27,28.26286106]
[1744274036019,0.03,114.3,114.29,26.61136106]
[1744274036222,6.2952,114.37,114.29,53.50704526]
[1744274036412,6.2952,114.37,114.33,26.61136106]
[1744274038222,6.2952,114.37,114.34,26.61136106]
[1744274038718,83.0602,114.38,114.34,26.61136106]
[1744274038924,91.803,114.38,114.34,26.61136106]
[1744274039125,118.41436106,114.38,114.33,26.61136106]
[1744274039502,91.803,114.38,114.33,26.61136106]
[1744274039915,91.803,114.38,114.34,26.61136106]
[1744274040234,83.0602,114.38,114.3,26.61136106]
[1744274040404,83.0602,114.38,114.34,26.61136106]
[1744274040599,81.5,114.38,114.3,26.61136106]
[1744274040797,81.5,114.38,114.35,26.61136106]
[1744274041204,0.03,114.39,114.36,26.61136106]
[1744274042233,0.03,114.39,114.38,26.61136106]
[1744274042905,0.03,114.39,114.37,26.61136106]
[1744274043299,0.03,114.39,114.38,26.61136106]
[1744274046808,0.03,114.39,114.38,47.09633306]
[1744274048129,0.03,114.4,114.39,18.64964886]
[1744274048320,0.03,114.4,114.39,49.62034086]
[1744274048520,0.03,114.4,114.39,45.26100992]
[1744274048909,0.03,114.4,114.39,65.54533306]
[1744274049114,0.03,114.41,114.4,0.28432314]
[1744274049317,0.03,114.41,114.4,26.8956842]
[1744274051224,0.03,114.41,114.4,45.54533306]
[1744274051424,0.03,114.41,114.4,26.8956842]
[1744274051625,0.03,114.41,114.38,78.135336]
[1744274051932,0.03,114.41,114.39,26.61136106]
[1744274052345,0.03,114.41,114.38,103.19569706]
[1744274052840,0.03,114.41,114.39,26.61136106]
[1744274053135,0.03,114.41,114.4,26.61136106]
[1744274053715,0.03,114.41,114.4,26.8956842]
[1744274054439,0.03,114.41,114.4,45.54533306]
[1744274054644,0.03,114.41,114.4,65.54533306]
[1744274055528,0.03,114.41,114.4,92.15669412]
[1744274055840,0.03,114.42,114.41,18.64964886]
[1744274056041,0.03,114.42,114.41,71.87237098]
[1744274057039,0.03,114.46,114.45,26.61136106]
[1744274057819,0.03,114.46,114.45,26.8956842]
[1744274058343,0.03,114.46,114.45,45.54533306]
[1744274058947,0.03,114.46,114.45,26.8956842]
[1744274059273,0.03,114.46,114.45,0.28432314]
[1744274059539,0.03,114.46,114.45,26.8956842]
[1744274059925,0.03,114.46,114.45,45.54533306]
[1744274060327,0.03,114.46,114.45,26.8956842]
[1744274060640,0.03,114.46,114.45,26.61136106]
[1744274061550,0.03,114.46,114.45,26.8956842]
[1744274061724,0.03,114.46,114.45,65.54533306]
[1744274062428,0.03,114.48,114.47,44.64964886]
[1744274062746,0.03,114.48,114.47,71.26100992]
[1744274063746,0.03,114.48,114.47,118.15669412]
[1744274064128,0.03,114.48,114.47,91.54533306]
[1744274064557,0.03,114.48,114.47,71.54533306]
[1744274065360,0.03,114.48,114.47,26.28432314]
[1744274065528,0.03,114.48,114.47,52.8956842]
[1744274066633,0.03,114.48,114.47,26.61136106]
[1744274066850,0.03,114.48,114.47,45.26100992]
[1744274067153,0.03,114.48,114.47,72.15669412]
[1744274067749,0.03,114.48,114.47,45.54533306]
[1744274068660,0.03,114.48,114.47,26.8956842]
[1744274068834,0.03,114.48,114.47,26.61136106]
[1744274069420,0.03,114.48,114.47,26.8956842]
[1744274069732,0.03,114.48,114.47,72.15669412]
[1744274070129,0.03,114.48,114.47,45.54533306]
[1744274072124,0.03,114.48,114.47,26.61136106]
[1744274074157,0.03,114.48,114.46,26.61136106]
[1744274074334,6.3363,114.48,114.41,81.2]
[1744274074650,6.3363,114.48,114.44,26.61136106]
[1744274075669,6.3363,114.48,114.45,26.61136106]
[1744274076568,6.3363,114.48,114.44,26.61136106]
[1744274076866,41.68296106,114.48,114.43,26.61136106]
[1744274077866,26.61136106,114.47,114.42,26.61136106]
[1744274078048,28.26276106,114.45,114.4,26.61136106]
[1744274078237,6.2626,114.43,114.38,76.584336]
[1744274078565,6.2626,114.43,114.39,26.61136106]
[1744274078960,6.2626,114.43,114.4,26.61136106]
[1744274079159,6.2626,114.43,114.39,26.61136106]
[1744274079560,6.2626,114.43,114.4,26.61136106]
[1744274079761,6.2626,114.43,114.42,26.61136106]
[1744274080888,6.2626,114.43,114.41,26.61136106]
[1744274081172,6.2626,114.43,114.4,26.61136106]
[1744274081371,6.2626,114.43,114.41,26.61136106]
[1744274081577,6.2626,114.43,114.38,76.584336]
[1744274081749,6.2626,114.43,114.41,26.61136106]
[1744274082367,1.6514,114.45,114.42,26.61136106]
[1744274082669,87.5231,114.46,114.43,26.61136106]
[1744274082872,87.5231,114.46,114.42,26.61136106]
[1744274083447,122.87116106,114.46,114.41,26.61136106]
[1744274084159,45.26100992,114.45,114.38,76.584336]
[1744274084455,45.26100992,114.45,114.4,26.61136106]
[1744274084677,26.61136106,114.45,114.4,26.61136106]
[1744274084872,122.87116106,114.46,114.41,26.61136106]
[1744274085073,114.13446106,114.46,114.41,26.61136106]
[1744274085459,122.87106106,114.46,114.41,26.61136106]
[1744274086272,26.61136106,114.45,114.4,26.61136106]
[1744274086578,26.61136106,114.45,114.38,76.584336]
[1744274086876,26.61136106,114.45,114.4,26.61136106]
[1744274087371,35.34896106,114.45,114.4,26.61136106]
[1744274087549,35.34896106,114.45,114.38,76.584336]
[1744274087910,8.7376,114.45,114.4,26.61136106]
[1744274088066,96.2601,114.46,114.41,26.61136106]
[1744274088266,122.87146106,114.46,114.41,26.61136106]
[1744274089267,26.61136106,114.45,114.38,76.584336]
[1744274089473,46.89660992,114.44,114.39,26.61136106]
[1744274090565,55.63530992,114.44,114.39,26.61136106]
[1744274091090,1.6356,114.44,114.4,26.61136106]
[1744274091662,55.63480992,114.44,114.38,76.584336]
[1744274091862,28.24696106,114.44,114.39,26.61136106]
[1744274092267,1.6356,114.44,114.4,26.61136106]
[1744274092456,1.6356,114.44,114.38,76.584336]
[1744274092656,1.6356,114.44,114.4,26.61136106]
[1744274092981,1.6356,114.44,114.41,26.61136106]
[1744274093494,87.5231,114.46,114.43,26.61136106]
[1744274093849,87.5231,114.46,114.44,26.61136106]
[1744274094052,6.0231,114.46,114.39,18.64964886]
[1744274094368,6.0231,114.46,114.43,26.61136106]
[1744274095588,6.0231,114.46,114.44,26.61136106]
[1744274095884,1.5208,114.47,114.44,26.61136106]
[1744274096483,1.5208,114.47,114.41,18.933972]
[1744274096681,1.5208,114.47,114.42,26.0]
[1744274096885,1.5208,114.47,114.44,26.61136106]
[1744274097382,1.5208,114.47,114.45,26.61136106]
[1744274098664,0.03,114.48,114.46,26.61136106]
[1744274099477,0.03,114.48,114.45,26.61136106]
[1744274099684,26.64136106,114.48,114.43,26.61136106]
[1744274099978,0.03,114.48,114.45,26.61136106]
[1744274100582,0.03,114.48,114.46,26.61136106]
[1744274101066,0.03,114.48,114.43,0.28432314]
[1744274101382,0.03,114.48,114.46,16.65814704]
[1744274101779,0.03,114.48,114.47,16.65814704]
[1744274102082,0.03,114.48,114.47,33.60061722]
[1744274102460,0.03,114.48,114.47,16.94247018]
[1744274102862,0.03,114.48,114.47,16.65814704]
[1744274103291,0.03,114.48,114.47,52.63808384]
[1744274104960,0.03,114.48,114.47,79.56049082]
[1744274105360,0.03,114.48,114.47,52.92240698]
[1744274106284,0.03,114.48,114.47,79.56049082]
[1744274106472,0.03,114.48,114.47,52.92240698]
[1744274107092,0.03,114.48,114.47,52.63808384]
[1744274109074,0.03,114.48,114.47,118.21013968]
[1744274109386,0.03,114.49,114.48,71.92581654]
[1744274109592,0.03,114.49,114.48,18.64964886]
[1744274109798,0.03,114.49,114.48,71.92581654]
[1744274110295,0.03,114.5,114.48,78.25281768]
[1744274110469,0.03,114.5,114.49,45.2877327]
[1744274112991,0.03,114.51,114.5,0.28432314]
[1744274113302,0.03,114.51,114.5,52.63808384]
[1744274114289,0.03,114.51,114.5,71.57205584]
[1744274115391,0.03,114.52,114.51,38.933972]
[1744274115595,0.03,114.56,114.54,26.0]
[1744274115792,0.03,114.56,114.55,26.63808384]
[1744274116484,0.03,114.56,114.55,26.92240698]
[1744274116788,0.03,114.56,114.55,26.63808384]
[1744274118008,8.0012,114.55,114.46,29.81527975]
[1744274118194,8.0012,114.55,114.51,26.63808384]
[1744274119177,8.0012,114.55,114.48,26.63808384]
[1744274119389,43.36908384,114.55,114.5,26.63808384]
[1744274119584,8.0012,114.55,114.52,26.63808384]
[1744274119802,8.0012,114.55,114.51,26.63808384]
[1744274120002,43.36918384,114.55,114.48,0.28432314]
[1744274120204,43.36918384,114.55,114.5,26.63808384]
[1744274121002,26.63808384,114.54,114.49,26.63808384]
[1744274121182,8.7313,114.53,114.49,26.63808384]
[1744274122005,34.63928384,114.55,114.5,26.63808384]
[1744274122305,8.0012,114.55,114.51,26.63808384]
[1744274122510,8.0012,114.55,114.53,26.63808384]